bitfinex-derivatives/quotes_ETHF0:USTF0_20260312
["timestamp","ask_amount","ask_price","bid_price","bid_amount"]
[1773338952535,0.96500438,2058.2,2057.4,0.95262939]
[1773338953032,0.96500438,2058.0,2057.4,0.95262939]
[1773338953326,1.20790438,2058.1,2057.4,0.95262939]
[1773338953527,0.96500438,2058.0,2057.4,0.95262939]
[1773338955229,1.20790438,2058.1,2057.4,0.95262939]
[1773338956033,0.96500438,2058.0,2057.4,0.95262939]
[1773338957530,0.96500438,2057.8,2057.4,0.02701293]
[1773338957731,0.96500438,2057.6,2057.2,0.94761646]
[1773338957938,0.96500438,2057.4,2057.1,0.92561646]
[1773338958129,0.24297,2057.5,2057.1,0.92561646]
[1773338958736,0.24734387,2057.5,2057.1,0.93102937]
[1773338958929,0.00437387,2057.5,2057.1,0.93102937]
[1773338959130,0.96937825,2057.5,2057.1,0.93102937]
[1773338959330,0.96937825,2057.5,2057.1,0.00541291]
[1773338959530,0.96937825,2057.5,2057.1,0.93102937]
[1773338962139,0.00437387,2057.5,2057.1,0.93102937]
[1773338962540,1.19856248,2057.9,2057.1,0.93102937]
[1773338962839,0.95563248,2057.8,2057.1,0.93102937]
[1773338963641,0.95563248,2057.6,2057.1,0.93102937]
[1773338964235,0.24295,2057.7,2057.1,0.93102937]
[1773338964741,1.19858248,2057.7,2057.1,0.93102937]
[1773338965242,0.95563248,2057.6,2057.1,0.93102937]
[1773338965442,0.00571455,2057.8,2056.9,0.92634603]
[1773338965443,0.95563248,2057.4,2056.9,0.92634603]
[1773338965942,1.19860248,2057.5,2056.9,0.92634603]
[1773338966342,1.19860248,2057.5,2056.9,0.93207726]
[1773338966743,0.00571455,2057.8,2056.9,0.93207726]
[1773338966947,0.96134703,2057.8,2056.9,0.93207726]
[1773338967340,0.95563248,2057.6,2056.9,0.93207726]
[1773338968142,0.24295,2057.7,2056.9,0.93207726]
[1773338968941,0.95563248,2057.6,2056.9,0.93207726]
[1773338969842,0.00571455,2057.8,2056.9,0.93207726]
[1773338969843,0.96134703,2057.8,2056.9,0.93207726]
[1773338970042,0.00571455,2057.8,2057.1,0.92634603]
[1773338970344,0.4849,2058.1,2057.6,0.92634603]
[1773338970345,1.44053248,2058.1,2057.6,0.92634603]
[1773338970547,0.4849,2058.1,2057.6,0.92634603]
[1773338970942,0.242,2058.1,2057.7,0.92634603]
[1773338971141,0.24285,2058.5,2057.8,0.92634603]
[1773338971142,1.19848248,2058.5,2057.8,0.92634603]
[1773338971345,0.00387973,2058.5,2058.3,0.022]
[1773338971544,0.00387973,2058.5,2058.3,0.94834603]
[1773338971843,0.00387973,2058.5,2058.3,0.022]
[1773338972147,0.95951221,2058.5,2058.3,0.022]
[1773338972338,0.95951221,2058.5,2058.1,0.94834603]
[1773338972542,1.00351221,2058.5,2058.1,0.022]
[1773338975449,1.00351221,2058.5,2058.1,0.94834603]
[1773338976539,1.00351221,2058.5,2058.1,0.022]
[1773338976745,1.00351221,2058.5,2058.1,0.94834603]
[1773338978047,1.00351221,2058.5,2058.1,0.022]
[1773338979351,0.24287,2058.4,2057.9,0.022]
[1773338979552,0.95563248,2058.3,2057.9,0.022]
[1773338979752,0.30887,2058.4,2057.9,0.94834603]
[1773338980050,0.066,2058.4,2057.9,0.94834603]
[1773338980646,0.00387973,2058.5,2057.9,0.94834603]
[1773338980953,0.00387973,2058.5,2057.9,0.92634603]
[1773338981157,0.93751221,2058.7,2058.3,0.94834603]
[1773338981655,0.95951221,2058.6,2058.3,0.022]
[1773338981854,0.95563248,2058.6,2058.3,0.022]
[1773338982156,0.9613014,2058.6,2058.3,0.022]
[1773338982352,0.9613014,2058.6,2058.1,0.022]
[1773338982553,1.0053014,2058.6,2058.1,0.93123167]
[1773338983959,0.24282,2058.9,2058.1,0.93123167]
[1773338984258,0.24282,2058.9,2057.9,2.8536471]
[1773338984259,0.92096605,2059.2,2058.3,0.90923167]
[1773338984551,0.89896605,2059.2,2058.7,0.93123167]
[1773338984950,0.89896605,2059.2,2058.7,0.022]
[1773338985149,0.90352634,2059.2,2058.7,0.02694632]
[1773338986757,0.90352634,2059.2,2058.7,0.93617799]
[1773338987052,0.90352634,2059.2,2058.7,0.02694632]
[1773338987258,0.92096605,2059.0,2058.4,0.90923167]
[1773338987453,0.28678,2059.1,2058.4,0.90923167]
[1773338987454,0.92096605,2058.8,2058.4,0.90923167]
[1773338987647,0.066,2058.9,2058.4,0.90923167]
[1773338988350,0.066,2058.9,2058.4,0.91533122]
[1773338988756,0.98696605,2058.9,2058.4,0.91533122]
[1773338990261,0.98696605,2058.9,2058.4,0.00609955]
[1773338990455,0.98696605,2058.9,2058.4,0.89086255]
[1773338990655,0.98696605,2058.9,2058.4,0.00609955]
[1773338991265,0.98696605,2058.9,2058.4,0.89086255]
[1773338991465,0.98696605,2058.9,2058.4,0.00609955]
[1773338993271,0.91602171,2058.7,2058.1,0.906763]
[1773338994072,0.91602171,2058.7,2058.1,0.91270093]
[1773338995773,0.088,2058.8,2058.1,0.91270093]
[1773338996673,0.088,2058.8,2058.2,0.884763]
[1773338997072,0.91602171,2059.1,2058.3,0.884763]
[1773338997274,1.163362,2059.2,2058.3,0.884763]
[1773338997567,1.141362,2059.2,2059.0,0.022]
[1773338997874,1.141362,2059.2,2058.8,0.906763]
[1773338998268,0.96002171,2059.2,2058.8,0.906763]
[1773338998470,0.96583909,2059.2,2058.8,0.906763]
[1773338999476,0.96583909,2059.2,2058.8,0.022]
[1773339001472,0.96583909,2059.2,2058.6,0.906763]
[1773339001473,0.24278,2059.1,2058.6,0.022]
[1773339001677,0.91602171,2059.0,2058.4,0.022]
[1773339001872,1.00402171,2059.0,2058.4,0.906763]
[1773339002370,0.088,2059.0,2058.4,0.906763]
[1773339002871,1.00402171,2059.0,2058.4,0.906763]
[1773339005578,0.91602171,2058.8,2058.4,0.022]
[1773339005875,0.91602171,2058.8,2058.4,0.906763]
[1773339006076,0.91602171,2058.8,2058.2,0.906763]
[1773339006277,0.11,2058.9,2058.2,0.906763]
[1773339006477,1.02602171,2058.9,2058.2,0.906763]
[1773339009578,1.02602171,2058.9,2058.6,0.884763]
[1773339009778,0.00581738,2059.2,2058.8,1.130903]
[1773339009978,0.91602171,2059.5,2059.1,0.884763]
[1773339010173,0.24271,2059.8,2059.2,1.127673]
[1773339010174,0.91602171,2059.6,2059.2,1.127673]
[1773339010374,5.73070455,2059.9,2059.3,0.884763]
[1773339010375,0.91602171,2059.9,2059.3,0.884763]
[1773339010577,1.80772967,2060.0,2059.3,0.884763]
[1773339010887,0.91602171,2060.0,2059.3,0.884763]
[1773339011072,0.92155922,2060.0,2059.3,0.884763]
[1773339012482,0.92155922,2060.0,2059.1,0.884763]
[1773339012881,0.92155922,2060.0,2058.8,7.64218842]
[1773339012882,0.92155922,2060.0,2058.9,0.884763]
[1773339013381,0.91602171,2059.9,2058.9,0.884763]
[1773339014785,0.91602171,2059.7,2058.9,0.884763]
[1773339017681,0.89402171,2059.7,2059.3,0.022]
[1773339018279,0.93802171,2059.7,2059.3,0.022]
[1773339018490,0.93802171,2059.7,2059.1,0.906763]
[1773339019285,0.91602171,2059.5,2059.1,0.022]
[1773339019485,0.91602171,2059.5,2058.9,0.906763]
[1773339019686,0.24275,2059.4,2058.9,0.022]
[1773339019886,0.91602171,2059.3,2058.9,0.022]
[1773339020185,0.91602171,2059.3,2058.9,0.906763]
[1773339020683,0.89150341,2059.1,2058.7,0.022]
[1773339020887,0.89150341,2059.1,2058.5,0.022]
[1773339021190,0.24279,2059.0,2058.5,0.022]
[1773339021489,0.89150341,2058.9,2058.5,0.87153948]
[1773339021678,0.89150341,2059.2,2058.5,0.87153948]
[1773339022290,0.132,2059.3,2058.6,0.84953948]
[1773339022291,1.02350341,2059.3,2058.6,0.84953948]
[1773339023981,1.02350341,2059.3,2058.5,0.022]
[1773339024182,1.02350341,2059.3,2058.5,0.87153948]
[1773339025990,0.89150341,2059.1,2058.5,0.022]
[1773339026681,0.89150341,2059.1,2058.5,0.87153948]
[1773339027993,0.89150341,2059.1,2058.5,0.022]
[1773339030191,0.89150341,2059.1,2058.5,0.87153948]
[1773339030692,0.89150341,2058.9,2058.5,0.022]
[1773339031890,0.89150341,2058.9,2058.5,0.87153948]
[1773339033596,0.89150341,2058.9,2058.5,0.022]
[1773339034999,0.89150341,2058.9,2058.3,0.022]
[1773339035000,0.24282,2058.8,2058.3,0.022]
[1773339035191,0.89150341,2058.7,2058.1,0.87747741]
[1773339035396,0.89150341,2058.7,2058.1,0.02793793]
[1773339036002,0.176,2059.1,2058.1,0.87747741]
[1773339036194,1.06750341,2059.1,2058.3,0.84953948]
[1773339036696,0.176,2059.1,2058.3,0.84953948]
[1773339037096,0.89150341,2059.5,2058.6,0.84953948]
[1773339037491,0.86950341,2059.5,2059.3,0.022]
[1773339037796,0.85332065,2059.5,2059.1,0.022]
[1773339038196,0.89732065,2059.5,2059.1,0.022]
[1773339039295,0.89732065,2059.5,2058.9,0.022]
[1773339039600,0.89150341,2059.3,2058.9,0.022]
[1773339039899,0.89150341,2059.3,2058.9,0.87153948]
[1773339040597,0.95750341,2059.4,2058.9,0.87153948]
[1773339042000,0.95750341,2059.4,2058.9,0.022]
[1773339042499,0.95750341,2059.4,2058.9,0.87839167]
[1773339043096,0.95750341,2059.4,2058.9,0.022]
[1773339043299,0.88629585,2059.1,2058.5,0.022]
[1773339043496,0.88629585,2059.1,2058.5,0.87839167]
[1773339043799,0.35277,2059.2,2058.5,0.87839167]
[1773339043800,1.23906585,2059.2,2058.5,0.87839167]
[1773339044000,0.88629585,2059.1,2058.5,0.87839167]
[1773339048895,0.24279,2059.0,2058.5,0.022]
[1773339049101,0.88629585,2058.9,2058.3,0.022]
[1773339054009,0.98939503,2059.1,2058.3,0.88836448]
[1773339054604,0.132,2059.1,2058.3,0.88836448]
[1773339054805,0.132,2059.1,2058.4,0.86636448]
[1773339055001,0.98939503,2059.1,2058.4,0.86636448]
[1773339060717,0.85739503,2059.0,2058.4,0.86636448]
[1773339062618,0.85739503,2058.8,2058.1,8.53649083]
[1773339062922,0.85739503,2058.6,2058.1,0.89430241]
[1773339063423,0.85739503,2058.6,2058.1,0.02793793]
[1773339063618,0.85739503,2058.4,2057.9,0.022]
[1773339064220,0.85739503,2058.4,2057.7,0.88836448]
[1773339064611,0.86319911,2058.4,2057.7,0.89210689]
[1773339065921,0.85739503,2058.2,2057.7,0.00374241]
[1773339066116,0.85739503,2058.2,2057.5,0.88836448]
[1773339066518,0.85739503,2058.2,2057.5,0.022]
[1773339067114,0.85739503,2058.2,2057.5,0.02643937]
[1773339067620,0.85739503,2058.0,2057.3,0.022]
[1773339067823,0.85739503,2057.8,2057.1,0.022]
[1773339068423,0.85739503,2057.8,2056.9,0.88836448]
[1773339068619,0.24295,2057.7,2056.9,0.02592459]
[1773339068823,7.22139503,2057.6,2056.9,0.02592459]
[1773339069120,0.85739503,2057.5,2056.9,0.02592459]
[1773339070021,0.85739503,2057.5,2056.9,0.89228907]
[1773339070623,0.85739503,2057.5,2056.7,0.88836448]
[1773339071620,0.85739503,2057.3,2056.7,0.02772086]
[1773339071827,0.85739503,2057.3,2056.7,0.89408534]
[1773339076024,0.85739503,2057.5,2057.0,0.86636448]
[1773339076226,0.85739503,2057.5,2057.2,1.11060448]
[1773339076428,0.85739503,2057.5,2057.2,0.86636448]
[1773339076724,0.85739503,2057.6,2057.2,0.86636448]
[1773339076927,6.60893,2057.9,2057.2,0.86636448]
[1773339076928,0.85739503,2057.8,2057.2,0.86636448]
[1773339079629,0.85739503,2057.8,2056.8,0.86636448]
[1773339080432,0.85739503,2057.8,2057.0,0.89662082]
[1773339080726,0.85739503,2057.8,2057.2,1.14334082]
[1773339080926,0.85739503,2057.8,2057.3,1.14205082]
[1773339081332,0.85739503,2057.8,2057.3,0.89662082]
[1773339081527,0.85739503,2057.8,2056.8,0.89662082]
[1773339081733,0.85739503,2057.8,2057.0,0.89662082]
[1773339081928,0.85739503,2057.8,2056.7,0.02772086]
[1773339082132,0.85739503,2057.8,2056.8,0.89662082]
[1773339082332,0.85739503,2057.8,2056.9,0.89662082]
[1773339082632,0.85739503,2057.8,2057.1,0.89662082]
[1773339084134,0.85739503,2057.8,2056.8,0.89662082]
[1773339084935,0.82397901,2057.6,2056.8,0.89662082]
[1773339087632,0.82397901,2057.4,2056.7,0.92434168]
[1773339088338,0.82397901,2057.9,2056.7,0.92434168]
[1773339088538,0.82397901,2057.7,2056.7,0.92434168]
[1773339090637,0.82397901,2057.7,2057.0,0.89662082]
[1773339090838,0.82397901,2057.7,2057.2,0.89662082]
[1773339091035,0.82397901,2057.7,2057.2,1.14067082]
[1773339091434,0.82397901,2057.7,2057.2,0.89662082]
[1773339093542,0.82397901,2057.9,2057.2,0.89662082]
[1773339099040,0.82397901,2057.9,2057.4,0.89662082]
[1773339099243,0.24292,2058.0,2057.5,0.89662082]
[1773339099244,1.06689901,2058.0,2057.5,0.89662082]
[1773339099439,0.82397901,2057.9,2057.0,7.64218842]
[1773339099644,0.82397901,2057.9,2057.1,0.89662082]
[1773339100945,0.82397901,2057.9,2057.3,0.89662082]
[1773339106249,0.24292,2058.0,2057.4,0.82551476]
[1773339106250,0.8686964,2058.0,2057.4,0.82551476]
[1773339107046,0.8686964,2058.0,2057.6,0.82551476]
[1773339107452,0.308,2058.3,2057.6,0.82551476]
[1773339107653,1.1766964,2058.3,2057.6,0.82551476]
[1773339107950,0.8686964,2058.2,2057.6,0.82551476]
[1773339108547,0.308,2058.3,2057.8,0.82551476]
[1773339108747,1.1766964,2058.3,2058.0,0.82551476]
[1773339109653,0.308,2058.3,2058.0,0.82551476]
[1773339110055,0.8686964,2058.2,2057.8,0.82551476]
[1773339110761,0.8686964,2058.2,2057.5,0.85225939]
[1773339111057,0.86303666,2058.0,2057.3,0.85225939]
[1773339111255,0.86303666,2057.8,2057.3,0.85225939]
[1773339115152,0.86303666,2057.8,2057.0,0.85225939]
[1773339115852,0.86303666,2057.8,2056.7,0.87998025]
[1773339115853,0.86303666,2057.4,2056.7,0.87998025]
[1773339116351,1.10603666,2057.3,2056.7,0.87998025]
[1773339116555,0.86303666,2057.2,2056.7,0.87998025]
[1773339116753,1.10603666,2057.3,2056.7,0.87998025]
[1773339116948,0.86303666,2057.2,2056.7,0.87998025]
[1773339118661,0.243,2057.3,2056.7,0.87998025]
[1773339118857,1.10603666,2057.3,2056.7,0.87998025]
[1773339119057,0.86303666,2057.2,2056.7,0.87998025]
[1773339119358,0.86303666,2057.5,2056.7,0.87998025]
[1773339119558,1.10598666,2057.7,2056.7,0.87998025]
[1773339119767,0.86303666,2057.7,2056.7,0.87998025]
[1773339120062,0.86303666,2057.7,2056.8,0.85225939]
[1773339120264,7.22903666,2057.9,2056.9,0.85225939]
[1773339120653,7.22903666,2057.9,2056.5,10.19784423]
[1773339120654,0.89242832,2056.8,2056.5,0.022]
[1773339120854,0.24306,2056.8,2056.3,0.87425939]
[1773339121453,0.64714839,2057.1,2056.3,0.87425939]
[1773339121763,0.65073475,2057.1,2056.3,0.87928888]
[1773339123058,0.00358636,2057.1,2056.3,0.87928888]
[1773339123461,0.00358636,2057.1,2056.4,1.09691939]
[1773339123664,0.00358636,2057.1,2056.5,0.85225939]
[1773339123865,0.00358636,2057.1,2056.6,1.10144939]
[1773339124164,0.6590724,2057.5,2056.7,0.85225939]
[1773339125164,0.66261937,2057.5,2056.7,0.85225939]
[1773339127363,0.65557584,2057.3,2056.4,0.85225939]
[1773339128368,0.65500923,2057.1,2056.4,0.85225939]
[1773339130759,0.24303,2057.0,2056.4,0.85225939]
[1773339130960,0.64924311,2056.9,2056.4,0.85225939]
[1773339132357,0.24303,2057.0,2056.4,0.85225939]
[1773339132969,0.64597346,2057.1,2056.4,0.85225939]
[1773339135265,0.24303,2057.0,2056.4,0.85225939]
[1773339135471,0.64427713,2056.9,2056.4,0.85225939]
[1773339135974,0.64427713,2056.9,2056.3,0.87928888]
[1773339137167,0.24303,2057.0,2056.3,0.87928888]
[1773339138372,0.88483424,2057.0,2056.3,0.87928888]
[1773339138575,0.24303,2057.0,2056.3,0.87928888]
[1773339139877,0.88311346,2057.0,2056.3,0.87928888]
[1773339142784,0.64280101,2056.9,2056.3,0.87928888]
[1773339144587,0.64640735,2056.7,2056.3,0.87928888]
[1773339145185,0.24308,2056.6,2056.1,0.85445378]
[1773339145385,0.65371729,2056.5,2055.9,0.85445378]
[1773339145582,0.65270266,2056.3,2055.9,0.85445378]
[1773339145783,0.65270266,2056.3,2055.9,0.022]
[1773339146084,0.65270266,2056.3,2055.9,0.85445378]
[1773339146279,0.2431,2056.4,2055.9,0.85838038]
[1773339146280,0.89581844,2056.4,2055.9,0.85838038]
[1773339146486,5.95105052,2056.7,2055.9,0.85838038]
[1773339146685,0.65171511,2056.7,2055.9,0.85838038]
[1773339147779,0.89374734,2056.8,2055.9,0.85838038]
[1773339148587,0.65068734,2056.8,2055.9,0.85838038]
[1773339149285,0.64705506,2056.6,2055.9,0.85838038]
[1773339159802,0.62460348,2056.4,2055.9,0.85838038]
[1773339161104,0.62355839,2056.2,2055.9,0.85838038]
[1773339161403,0.62355839,2056.2,2055.8,0.83245378]
[1773339161597,0.83255413,2056.0,2055.7,0.022]
[1773339161804,0.83255413,2056.0,2055.5,0.85445378]
[1773339162005,0.83255413,2056.2,2055.5,0.85445378]
[1773339162504,0.83884927,2056.2,2055.5,0.85911918]
[1773339163203,0.78283742,2056.0,2055.5,0.85911918]
[1773339163999,2.10223274,2056.1,2055.5,0.85911918]
[1773339164205,2.88507016,2056.1,2055.5,0.85911918]
[1773339164704,0.78283742,2056.1,2055.5,0.85911918]
[1773339165098,0.78283742,2056.1,2055.6,0.85516763]
[1773339165299,0.78283742,2056.1,2055.7,1.09981763]
[1773339165702,0.78283742,2056.1,2055.8,1.09857763]
[1773339165907,0.78283742,2056.3,2056.0,1.09882763]
[1773339166295,0.78283742,2056.3,2055.5,0.0266654]
[1773339166296,0.78283742,2056.5,2056.2,1.09835763]
[1773339166501,0.78283742,2056.5,2056.2,0.85516763]
[1773339166900,0.78901976,2056.5,2056.2,0.85516763]
[1773339167110,0.00618234,2056.5,2056.2,0.85516763]
[1773339169002,0.78901976,2056.5,2056.2,0.85516763]
[1773339169604,0.00618234,2056.5,2056.2,0.85516763]
[1773339169802,1.02589742,2056.8,2056.2,0.85516763]
[1773339170501,0.78283742,2056.8,2056.2,0.85516763]
[1773339170702,0.83603741,2056.9,2056.2,0.85516763]
[1773339170906,0.84220735,2056.9,2056.2,0.85516763]
[1773339171103,0.00616994,2056.9,2056.2,0.85516763]
[1773339171302,0.84220735,2056.9,2056.2,0.85516763]
[1773339171998,0.84220735,2056.9,2056.3,1.11021482]
[1773339172205,0.84220735,2056.9,2055.8,6.367]
[1773339172206,0.84220735,2056.9,2056.6,0.86428482]
[1773339172508,0.84220735,2056.9,2056.6,1.11002482]
[1773339172702,0.84220735,2056.9,2056.6,0.86428482]
[1773339173509,0.00616994,2056.9,2056.6,0.86428482]
[1773339184214,0.84220735,2056.9,2056.6,0.86428482]
[1773339184911,0.84220735,2056.9,2055.8,0.86428482]
[1773339185819,0.83603741,2056.8,2055.8,0.86428482]
[1773339186719,0.83603741,2056.6,2055.8,0.86428482]
[1773339188112,0.83603741,2056.5,2055.8,0.86428482]
[1773339189316,0.2431,2056.4,2055.8,0.86428482]
[1773339190218,0.83603741,2056.3,2055.8,0.86428482]
[1773339191012,0.2431,2056.4,2055.8,0.86428482]
[1773339191219,0.83603741,2056.7,2055.8,0.86428482]
[1773339191421,7.01914333,2056.8,2055.8,0.86428482]
[1773339191620,0.83603741,2056.7,2055.8,0.86428482]
[1773339193622,0.84220735,2056.9,2056.0,0.86428482]
[1773339193823,0.84220735,2056.9,2056.3,0.86428482]
[1773339194021,0.84220735,2056.9,2056.5,0.86428482]
[1773339195017,0.00616994,2056.9,2056.5,0.86428482]
[1773339198423,0.84220735,2056.9,2056.5,0.86428482]
[1773339199221,0.84220735,2056.9,2056.3,0.86428482]
[1773339199426,0.83603741,2056.8,2056.3,0.86428482]
[1773339201024,0.83603741,2056.8,2055.7,0.86413741]
[1773339201817,0.79005082,2056.7,2055.7,0.86413741]
[1773339203428,7.15705082,2056.8,2055.7,0.86413741]
[1773339203624,6.367,2056.8,2055.7,0.86413741]
[1773339204030,6.367,2056.8,2055.7,1.10827741]
[1773339204323,6.367,2056.8,2056.0,1.11135741]
[1773339204528,6.367,2056.8,2056.1,1.11162741]
[1773339205232,6.367,2056.8,2056.2,1.11049741]
[1773339205430,7.15705082,2056.8,2056.4,1.10782741]
[1773339205629,0.00616994,2056.9,2056.5,0.86413741]
[1773339205928,5.94589083,2057.4,2056.5,0.86413741]
[1773339206125,0.79005082,2057.5,2056.5,0.86413741]
[1773339206427,0.79005082,2057.4,2056.5,0.86413741]
[1773339206826,0.79005082,2057.5,2056.5,0.86413741]
[1773339207032,0.79439703,2057.5,2056.5,0.86413741]
[1773339207429,0.00434621,2057.5,2056.6,1.10752741]
[1773339207724,0.00434621,2057.5,2056.8,1.10785741]
[1773339207932,0.00434621,2057.5,2056.9,0.86413741]
[1773339208929,0.44,2057.7,2056.9,0.86413741]
[1773339209335,1.23005082,2057.7,2056.9,0.86413741]
[1773339209628,1.23005082,2057.7,2057.0,0.86413741]
[1773339209833,1.23005082,2057.7,2057.2,1.10881741]
[1773339210135,1.23564174,2057.7,2057.4,0.86413741]
[1773339210536,0.79005082,2057.6,2056.7,0.86413741]
[1773339211335,0.79005082,2057.6,2056.7,1.10823741]
[1773339211536,0.79005082,2057.6,2056.6,2.10821083]
[1773339211537,0.79005082,2057.6,2057.1,0.86413741]
[1773339211735,1.23564174,2057.7,2057.3,1.11031741]
[1773339212537,1.23564174,2057.7,2057.3,0.86413741]
[1773339213032,0.79005082,2057.6,2057.3,0.86413741]
[1773339213238,0.79005082,2057.6,2056.7,0.86413741]
[1773339219539,0.79005082,2057.4,2056.7,0.86413741]
[1773339220036,0.24297,2057.5,2056.7,0.86413741]
[1773339220236,1.03302082,2057.5,2056.7,0.86413741]
[1773339221039,0.44559092,2057.7,2056.7,0.86413741]
[1773339221337,1.23564174,2057.7,2056.7,0.86413741]
[1773339221733,0.79005082,2057.6,2056.7,0.86413741]
[1773339226442,0.68855092,2057.7,2056.7,0.86413741]
[1773339226640,1.48019262,2057.7,2056.7,0.86413741]
[1773339227143,0.7916417,2057.6,2056.7,0.86413741]
[1773339227939,0.7916417,2057.6,2056.9,1.0357537]
[1773339228140,0.7916417,2057.6,2057.1,0.7873837]
[1773339228438,0.7916417,2057.6,2057.3,0.7873837]
[1773339228634,0.68855092,2057.7,2057.3,0.7873837]
[1773339228841,1.48019262,2057.7,2057.3,0.7873837]
[1773339229237,0.7916417,2058.1,2057.3,0.7873837]
[1773339229633,0.7696417,2058.1,2057.9,0.022]
[1773339229833,4.01246641,2058.6,2057.7,0.8093837]
[1773339229834,6.73167756,2058.5,2057.7,0.8093837]
[1773339230038,0.7916417,2058.4,2057.7,0.8093837]
[1773339230233,0.044,2058.1,2057.7,0.8093837]
[1773339231041,0.85762378,2058.4,2057.7,0.8093837]
[1773339231340,6.18395796,2058.6,2058.3,0.80191048]
[1773339231341,1.07846378,2058.6,2058.3,0.80191048]
[1773339231638,1.07846378,2058.6,2058.2,0.022]
[1773339231639,0.85144048,2058.5,2058.2,0.00952252]
[1773339231945,0.85762378,2058.5,2058.2,0.00952252]
[1773339232142,0.88591796,2058.5,2058.2,0.00952252]
[1773339232342,0.89197995,2058.5,2058.2,0.01298973]
[1773339233142,0.89197995,2058.5,2058.0,0.022]
[1773339233342,0.90150247,2058.5,2057.8,0.82391048]
[1773339233543,0.91744048,2058.3,2057.8,0.82391048]
[1773339234144,0.91744048,2058.3,2057.8,0.82965752]
[1773339236457,0.85144048,2058.2,2057.8,0.82965752]
[1773339236850,2.94961952,2058.1,2057.8,0.82965752]
[1773339237450,0.85144048,2058.0,2057.8,0.02774704]
[1773339237650,2.94961952,2058.1,2057.8,0.82965752]
[1773339238859,0.85144048,2058.0,2057.8,0.02774704]
[1773339239053,0.85144048,2058.0,2057.6,0.82391048]
[1773339239654,2.94961952,2058.1,2057.6,0.82391048]
[1773339239953,0.088,2058.2,2057.7,0.80191048]
[1773339240157,0.93944048,2058.2,2057.7,0.80191048]
[1773339241958,2.09817904,2058.0,2057.7,0.80191048]
[1773339242149,0.85144048,2058.0,2057.7,0.80191048]
[1773339242353,0.088,2058.2,2057.7,0.80191048]
[1773339245458,0.85144048,2058.0,2057.7,0.80191048]
[1773339245955,0.85144048,2058.0,2057.6,0.82864021]
[1773339246356,2.94961952,2058.1,2057.6,0.82864021]
[1773339247961,0.85144048,2058.1,2057.6,0.82864021]
[1773339252060,0.85144048,2058.0,2057.6,0.82864021]
[1773339252467,0.85144048,2057.6,2057.4,0.022]
[1773339252663,0.85144048,2057.4,2057.2,0.022]
[1773339252863,0.85144048,2057.6,2057.0,0.82391048]
[1773339253063,0.85144048,2057.8,2057.1,0.80191048]
[1773339253569,0.85144048,2057.8,2057.1,0.80568676]
[1773339254469,0.85144048,2057.3,2057.1,0.00377628]
[1773339254663,0.85144048,2057.1,2056.8,0.82391048]
[1773339255271,0.85144048,2057.3,2056.8,0.82391048]
[1773339255660,0.85144048,2057.3,2056.8,0.82746858]
[1773339262572,0.78772931,2057.1,2056.8,0.0255581]
[1773339262772,0.78772931,2056.9,2056.6,0.81064473]
[1773339262971,0.78772931,2056.9,2056.6,0.022]
[1773339263171,0.78772931,2056.9,2056.6,0.81064473]
[1773339263571,0.78772931,2057.1,2056.6,0.81064473]
[1773339263776,0.7929776,2057.1,2056.6,0.81540841]
[1773339266370,0.78772931,2057.3,2056.6,2.91358745]
[1773339266578,0.78772931,2057.3,2056.9,0.78864473]
[1773339267478,0.79212317,2057.3,2056.9,0.78864473]
[1773339267982,0.79212317,2057.3,2056.6,2.12494272]
[1773339267983,2.89030221,2057.3,2056.7,0.78864473]
[1773339268177,0.78772931,2057.0,2056.6,0.81540841]
[1773339269179,0.78772931,2057.0,2056.6,0.02676368]
[1773339269381,0.78772931,2056.8,2056.4,0.81064473]
[1773339269880,0.78772931,2056.6,2056.2,0.81064473]
[1773339270582,0.78772931,2056.6,2056.2,0.81672866]
[1773339271177,0.78772931,2057.0,2056.5,0.78864473]
[1773339272983,0.78772931,2057.2,2056.5,0.78864473]
[1773339279091,0.79212317,2057.3,2056.5,0.78864473]
[1773339282094,0.79212317,2057.3,2056.3,0.78864473]
[1773339283091,0.8484025,2057.1,2056.3,0.78864473]
[1773339283390,0.8484025,2056.9,2056.2,0.02808393]
[1773339283794,0.8484025,2056.9,2056.2,0.88600529]
[1773339288297,0.8484025,2057.1,2056.2,0.88600529]
[1773339293310,0.80971118,2057.2,2056.2,0.88600529]
[1773339293709,0.80971118,2057.2,2056.4,0.86014957]
[1773339294414,0.80971118,2057.0,2056.2,0.8882335]
[1773339300411,0.80971118,2057.2,2056.6,0.86014957]
[1773339300618,0.80971118,2057.2,2056.8,1.10546957]
[1773339300920,0.00439386,2057.3,2057.0,0.86014957]
[1773339301218,0.80971118,2057.4,2057.0,0.86014957]
[1773339301423,0.72460032,2057.4,2057.0,0.86014957]
[1773339301716,1.05171118,2057.5,2057.0,0.86014957]
[1773339302120,1.05784006,2057.5,2057.0,0.86014957]
[1773339303507,0.24812888,2057.5,2057.0,0.86014957]
[1773339304110,0.80971118,2057.7,2057.2,0.86014957]
[1773339304509,0.78771118,2057.7,2057.5,0.022]
[1773339304712,0.78771118,2057.7,2057.3,1.12769957]
[1773339305117,0.79135416,2057.7,2057.3,0.88214957]
[1773339305317,0.83535416,2057.7,2057.3,0.88214957]
[1773339305718,0.80971118,2057.5,2057.1,0.022]
[1773339306014,0.89771118,2057.5,2056.9,0.022]
[1773339306420,0.89771118,2057.5,2056.9,0.88214957]
[1773339307322,0.088,2057.5,2056.9,0.88214957]
[1773339308217,0.088,2057.5,2056.9,1.12597957]
[1773339308417,0.088,2057.5,2057.0,1.10600957]
[1773339308822,0.088,2057.5,2057.1,1.10792957]
[1773339309023,0.088,2057.5,2057.2,1.10778957]
[1773339309423,0.088,2057.5,2057.3,1.10331957]
[1773339309723,0.89771118,2057.5,2057.2,0.86014957]
[1773339316123,0.80971118,2057.6,2057.2,0.86014957]
[1773339316623,0.80971118,2057.6,2057.4,0.022]
[1773339316624,0.78771118,2057.6,2057.4,0.022]
[1773339317231,0.83171118,2057.6,2057.2,0.88214957]
[1773339318319,0.044,2057.6,2057.2,0.88214957]
[1773339318625,0.80971118,2058.1,2057.2,0.86014957]
[1773339318826,0.80971118,2058.4,2057.2,0.86014957]
[1773339319023,0.78771118,2058.4,2057.9,0.022]
[1773339319718,0.7933121,2058.4,2057.7,0.022]
[1773339319919,0.80971118,2058.2,2057.7,0.88214957]
[1773339320322,0.044,2058.3,2057.7,0.88214957]
[1773339320526,0.84879588,2058.4,2057.7,0.86014957]
[1773339320727,0.84879588,2058.4,2057.7,0.86524472]
[1773339320924,0.45694185,2058.4,2058.2,0.022]
[1773339321126,0.71537001,2058.7,2058.2,0.86692804]
[1773339321325,0.00560092,2058.5,2058.2,0.86692804]
[1773339321524,0.71537001,2058.9,2058.2,0.84492804]
[1773339321919,0.71537001,2058.9,2057.8,0.84492804]